bitfinex/quotes_SOLUSD_20251212
["timestamp","ask_amount","ask_price","bid_price","bid_amount"]
[1765541764949,17.92066813,138.54,138.49,10.02305378]
[1765541764950,0.67,138.53,138.49,10.02305378]
[1765541765152,7.9,138.54,138.5,2.80231583]
[1765541765353,8.57,138.54,138.5,2.80231583]
[1765541766159,8.57,138.54,138.51,7.21969532]
[1765541767371,7.9,138.54,138.5,7.2202166]
[1765541767560,0.67,138.53,138.5,10.02253243]
[1765541768570,0.67,138.53,138.5,7.2202166]
[1765541777574,0.66,138.56,138.52,10.02148995]
[1765541779356,7.21684886,138.57,138.52,10.02148995]
[1765541779571,7.87684886,138.57,138.53,2.80231583]
[1765541779874,0.66,138.57,138.53,2.80231583]
[1765541780982,0.66,138.57,138.54,7.21813194]
[1765541781278,20.84205579,138.59,138.54,28.06577763]
[1765541781279,7.21580613,138.59,138.54,28.06577763]
[1765541781584,0.66,138.58,138.54,28.06577763]
[1765541782077,0.66,138.58,138.54,35.96577763]
[1765541782976,0.66,138.58,138.54,35.96434135]
[1765541785958,0.66,138.58,138.54,37.53997843]
[1765541790704,8.56,138.6,138.54,46.210553]
[1765541790869,0.66,138.59,138.55,4.37651663]
[1765541791067,0.66,138.59,138.56,4.37651663]
[1765541792103,0.66,138.59,138.57,13.0470912]
[1765541792391,0.1,138.62,138.61,13.0470912]
[1765541792596,0.1,138.62,138.61,32.53809451]
[1765541796171,0.1,138.63,138.61,41.34803943]
[1765541796482,1e-08,138.63,138.62,13.18646155]
[1765541798697,1e-08,138.63,138.62,20.40042778]
[1765541800086,1e-08,138.63,138.62,7.21396623]
[1765541800286,1e-08,138.63,138.62,32.53757406]
[1765541800504,1e-08,138.63,138.62,19.49048286]
[1765541800803,1e-08,138.63,138.62,41.34751898]
[1765541804999,1e-08,138.63,138.62,32.53757406]
[1765541805699,1e-08,138.63,138.62,24.63757406]
[1765541805905,1e-08,138.63,138.62,32.53757406]
[1765541806278,1e-08,138.63,138.62,28.16105743]
[1765541806484,1e-08,138.63,138.62,32.53757406]
[1765541807303,1e-08,138.63,138.62,28.30042778]
[1765541811405,1e-08,138.63,138.62,24.63757406]
[1765541811712,1e-08,138.63,138.62,32.53757406]
[1765541814421,1e-08,138.63,138.62,24.63757406]
[1765541814594,1e-08,138.63,138.62,32.53757406]
[1765541814796,1e-08,138.63,138.62,24.63757406]
[1765541814998,1e-08,138.63,138.62,32.53757406]
[1765541815520,1e-08,138.63,138.62,24.63757406]
[1765541815715,1e-08,138.63,138.62,24.63161031]
[1765541816021,1e-08,138.63,138.62,32.53161031]
[1765541816603,1e-08,138.63,138.62,20.26105743]
[1765541816919,1e-08,138.63,138.62,32.53161031]
[1765541817713,1e-08,138.63,138.62,24.63161031]
[1765541818026,1e-08,138.63,138.62,32.53161031]
[1765541818317,1e-08,138.63,138.62,24.63161031]
[1765541818522,1e-08,138.63,138.62,32.53161031]
[1765541818824,1e-08,138.63,138.62,24.63161031]
[1765541819023,1e-08,138.63,138.62,32.53161031]
[1765541819923,0.71000001,138.63,138.62,32.53161031]
[1765541823102,0.71000001,138.63,138.62,24.63161031]
[1765541823421,0.71000001,138.63,138.62,32.53161031]
[1765541824730,0.71000001,138.63,138.62,24.63161031]
[1765541824916,0.71000001,138.63,138.62,20.26105743]
[1765541827934,0.71000001,138.63,138.62,24.63161031]
[1765541837138,0.71000001,138.63,138.62,7.21396623]
[1765541845251,0.71000001,138.63,138.62,11.58451911]
[1765541846134,0.71000001,138.63,138.62,10.0114243]
[1765541848661,0.71000001,138.63,138.62,10.01150154]
[1765541851744,0.71000001,138.63,138.62,7.21396623]
[1765541857354,0.71000001,138.63,138.62,10.01150154]
[1765541857861,0.71000001,138.63,138.62,7.21396623]
[1765541883380,1e-08,138.63,138.62,7.21396623]
[1765541883863,0.66000001,138.63,138.62,7.21396623]
[1765541885794,1e-08,138.63,138.62,7.21396623]
[1765541886092,1e-08,138.63,138.62,31.86868168]
[1765541886273,1e-08,138.63,138.62,34.75541353]
[1765541887283,1e-08,138.63,138.62,33.84546861]
[1765541888492,1e-08,138.63,138.62,31.04778928]
[1765541889496,1e-08,138.63,138.62,33.84546861]
[1765541891097,1e-08,138.63,138.62,42.65541353]
[1765541897301,1e-08,138.63,138.62,29.7504839]
[1765541897688,0.1,138.65,138.64,13.0470912]
[1765541897893,0.1,138.65,138.64,10.69767933]
[1765541898290,0.1,138.65,138.64,13.58378633]
[1765541899403,0.1,138.65,138.64,20.79671189]
[1765541902486,0.1,138.65,138.64,29.60665681]
[1765541904007,0.1,138.65,138.64,10.09903256]
[1765541904188,0.1,138.65,138.64,33.84380309]
[1765541904189,0.82,138.65,138.64,33.84380309]
[1765541904696,0.1,138.65,138.64,33.84380309]
[1765541905909,0.1,138.65,138.64,35.41537418]
[1765541906220,0.1,138.65,138.64,31.04612376]
[1765541906392,0.1,138.65,138.64,35.41537418]
[1765541907813,0.1,138.65,138.64,31.04612376]
[1765541908016,0.1,138.65,138.64,35.41537418]
[1765541908199,0.82,138.65,138.64,35.41537418]
[1765541909015,0.82,138.65,138.64,31.04612376]
[1765541909217,0.82,138.65,138.64,35.41537418]
[1765541909719,0.1,138.65,138.64,35.41537418]
[1765541914294,0.1,138.65,138.64,35.41528319]
[1765541921218,0.1,138.65,138.64,31.04612376]
[1765541921392,0.1,138.65,138.64,27.51528319]
[1765541921730,0.82,138.65,138.64,31.04612376]
[1765541922025,0.82,138.65,138.64,35.41528319]
[1765541923920,0.82,138.65,138.64,15.9331982]
[1765541924122,0.82,138.65,138.62,7.21374326]
[1765541924326,0.82,138.65,138.62,24.62999389]
[1765541924510,0.82,138.65,138.63,7.21336295]
[1765541924823,0.82,138.65,138.64,11.58208499]
[1765541925006,0.82,138.65,138.64,19.48208499]
[1765541925210,0.1,138.65,138.64,19.48208499]
[1765541926018,0.1,138.65,138.64,28.29202991]
[1765541926708,0.82,138.65,138.64,4.36915943]
[1765541927032,0.82,138.65,138.64,7.9]
[1765541929430,0.82,138.65,138.62,20.26084595]
[1765541929623,0.82,138.65,138.62,28.16084595]
[1765541930337,0.82,138.65,138.63,4.36915943]
[1765541930541,0.82,138.65,138.64,4.36915943]
[1765541930744,0.82,138.65,138.64,12.26915943]
[1765541931437,0.82,138.65,138.64,7.9]
[1765541932214,0.82,138.65,138.62,32.53000538]
[1765541932640,0.82,138.65,138.62,28.16084595]
[1765541932949,0.82,138.65,138.62,32.53000538]
[1765541933723,8.03245474,138.65,138.62,20.9470912]
[1765541933917,8.03245474,138.65,138.61,7.21425331]
[1765541934230,0.72,138.64,138.61,7.9]
[1765541934422,7.9330168,138.64,138.61,7.9]
[1765541934936,0.72,138.63,138.61,7.9]
[1765541940317,7.93373103,138.63,138.58,22.40879835]
[1765541940523,7.93373103,138.63,138.59,13.0470912]
[1765541940851,0.72,138.62,138.59,20.26253704]
[1765541941520,0.72,138.62,138.58,7.21582685]
[1765541941521,7.93408258,138.62,138.58,7.21582685]
[1765541941729,7.93408258,138.62,138.58,15.11582685]
[1765541941933,0.72,138.61,138.58,7.9]
[1765541943455,12.30415573,138.61,138.57,7.21643685]
[1765541943826,0.72,138.6,138.57,7.21643685]
[1765541946554,7.93507335,138.6,138.56,28.16407084]
[1765541947025,0.72,138.59,138.56,28.16407084]
[1765541947556,0.72,138.59,138.56,20.9470912]
[1765541947751,0.72,138.59,138.56,7.9]
[1765541948258,0.72,138.59,138.56,15.1169987]
[1765541948553,7.9355343,138.59,138.56,7.9]
[1765541948749,7.9355343,138.59,138.55,7.21744521]
[1765541949067,0.72,138.58,138.55,7.21744521]
[1765541949234,0.72,138.58,138.52,11.59463756]
[1765541949426,0.72,138.58,138.52,19.49463756]
[1765541949427,5.09576372,138.58,138.52,19.49463756]
[1765541949625,4.37576372,138.57,138.52,15.11887384]
[1765541949826,7.21709006,138.56,138.52,15.11887384]
[1765541950027,7.93709006,138.56,138.52,15.11887384]
[1765541950250,0.72,138.55,138.52,19.49463756]
[1765541951831,7.9376781,138.55,138.52,19.49463756]
[1765541952340,0.72,138.55,138.52,19.49463756]
[1765541953352,0.72,138.59,138.55,13.0470912]
[1765541953657,0.72,138.59,138.56,4.37576372]
[1765541953852,5.09576372,138.59,138.55,20.9470912]
[1765541954161,5.09576372,138.59,138.53,7.9]
[1765541954162,4.37576372,138.58,138.53,7.9]
[1765541954353,4.37576372,138.57,138.53,7.9]
[1765541954564,5.09576372,138.57,138.53,7.9]
[1765541954878,0.72,138.56,138.53,7.9]
[1765541955037,7.93714663,138.56,138.53,7.9]
[1765541955460,0.72,138.55,138.53,7.9]
[1765541957559,0.72,138.55,138.53,15.11861983]
[1765541958660,0.72,138.55,138.5,18.0499093]
[1765541958661,12.31358445,138.55,138.5,25.26705593]
[1765541958839,12.31358445,138.55,138.5,7.9]
[1765541959043,0.66,138.54,138.5,12.27576372]
[1765541959252,0.66,138.54,138.51,4.37576372]
[1765541959655,0.66,138.54,138.52,7.21916094]
[1765541962463,7.87831696,138.54,138.5,15.11990373]
[1765541962869,0.66,138.53,138.5,15.11990373]
[1765541972374,0.66,138.53,138.5,17.92263976]
[1765541972581,0.66,138.53,138.5,15.11990373]
[1765541981290,0.66,138.56,138.53,13.0470912]
[1765541981597,0.66,138.56,138.53,15.84812239]
[1765541982384,0.66,138.56,138.54,7.21813194]
[1765541991290,7.87711039,138.56,138.53,20.26561646]
[1765541991690,0.65,138.55,138.53,20.26561646]
[1765541992069,0.65,138.55,138.53,13.0470912]
[1765541992293,0.65,138.55,138.52,15.11891922]
[1765541993387,0.65,138.55,138.52,7.21891922]
[1765541993591,0.65,138.55,138.51,7.21969532]
[1765541994299,7.86769392,138.55,138.51,7.21969532]
[1765541994484,10.66872511,138.55,138.51,7.21969532]
[1765541994680,0.65,138.54,138.51,7.21969532]
[1765542001727,7.86818148,138.54,138.5,7.9]
[1765542002018,7.86818148,138.54,138.49,7.42046809]
[1765542002019,2.80103119,138.53,138.49,7.42046809]
[1765542002220,3.45103119,138.53,138.49,7.42046809]
[1765542002516,0.65,138.53,138.5,7.22018951]
[1765542002705,7.21818148,138.54,138.5,7.22018951]
[1765542002907,0.65,138.52,138.5,7.22018951]
[1765542003303,0.65,138.54,138.5,10.0212207]
[1765542004420,0.65,138.54,138.51,10.0203837]
[1765542006510,0.65,138.54,138.51,28.06962202]
[1765542007935,0.65,138.54,138.51,25.26859083]
[1765542011229,0.65,138.54,138.51,33.16859083]
[1765542011618,0.65,138.54,138.51,35.96962202]
[1765542013933,0.65,138.54,138.51,35.9705689]
[1765542015442,0.65,138.55,138.52,2.80197807]
[1765542016142,0.65,138.55,138.53,7.21865299]
[1765542017609,0.66,138.56,138.53,2.80197807]
[1765542018629,0.66,138.56,138.53,10.02011215]
[1765542020235,0.66,138.56,138.52,28.0690875]
[1765542023422,0.66,138.56,138.52,25.26710943]
[1765542024642,3.46197807,138.56,138.52,25.26710943]
[1765542025150,0.69,138.55,138.52,25.26710943]
[1765542031150,0.69,138.55,138.52,7.21917412]
[1765542031369,0.69,138.55,138.51,19.49746948]
[1765542032458,7.90767537,138.55,138.51,19.49746948]
[1765542032659,0.69,138.54,138.51,19.49746948]
[1765542034049,0.69,138.54,138.51,15.11943843]
[1765542034050,7.90816929,138.54,138.51,15.11943843]
[1765542034256,7.90816929,138.54,138.51,7.21943843]
[1765542034457,0.69,138.53,138.51,7.21943843]
[1765542039347,0.69,138.53,138.51,11.59746948]
[1765542040939,0.69,138.56,138.52,4.37803105]
[1765542041143,0.69,138.55,138.53,4.37803105]
[1765542041541,0.69,138.55,138.53,11.59644821]
[1765542045163,7.21688067,138.57,138.53,11.59644821]
[1765542045365,0.69,138.56,138.54,4.37803105]
[1765542046349,0.69,138.56,138.54,11.59597937]
[1765542047665,0.69,138.56,138.54,11.59407995]
[1765542055481,0.69,138.56,138.53,29.64141711]
[1765542062494,0.69,138.56,138.53,11.59478462]
[1765542062695,0.69,138.56,138.53,7.21865299]
[1765542064381,7.9071695,138.56,138.53,7.21865299]
[1765542064593,0.7,138.55,138.53,7.21865299]
[1765542066490,110.21621354,138.58,138.53,11.59478462]
[1765542066681,0.7,138.57,138.54,4.37613163]
[1765542067998,0.7,138.57,138.54,11.59377238]
[1765542068171,0.7,138.57,138.54,7.21764075]
[1765542078406,7.91660964,138.57,138.53,25.26528548]
[1765542079603,0.66,138.56,138.53,25.26528548]
[1765542084190,7.87717144,138.56,138.53,7.21865299]
[1765542084585,0.66,138.55,138.53,7.21865299]
[1765542085083,7.21717144,138.56,138.53,7.21865299]
[1765542085284,7.21656924,138.57,138.53,7.21865299]
[1765542085496,0.66,138.56,138.53,7.21865299]
[1765542086103,7.87656924,138.57,138.53,7.21865299]
[1765542086414,7.21631105,138.58,138.54,4.37731754]
[1765542086725,103.0,138.59,138.56,4.37731754]
[1765542087008,15.77471942,138.61,138.56,4.37731754]
[1765542087408,15.77471942,138.61,138.57,7.21656924]
[1765542087905,15.11471942,138.61,138.57,7.21656924]
[1765542088108,15.77471942,138.61,138.57,7.21656924]
[1765542090408,15.11471942,138.61,138.57,7.21656924]
[1765542090605,0.66,138.6,138.57,7.21656924]
[1765542090909,15.77471942,138.61,138.57,7.21656924]
[1765542091611,15.11471942,138.61,138.56,11.5944076]
[1765542091818,0.66,138.6,138.56,11.5944076]
[1765542092107,0.66,138.6,138.56,10.01694204]
[1765542093214,7.9,138.61,138.57,2.79985198]
[1765542093411,0.66,138.61,138.58,2.79985198]
[1765542094117,0.66,138.61,138.58,7.21604849]
[1765542094412,28.73404101,138.63,138.59,2.79985198]
[1765542094413,15.11369611,138.63,138.59,2.79985198]
[1765542094722,7.8731652,138.64,138.59,2.79985198]
[1765542094919,15.21261899,138.65,138.6,2.79985198]
[1765542095094,15.21261899,138.65,138.61,15.84694318]
[1765542095412,15.21261899,138.65,138.61,13.0470912]
[1765542095413,15.87261899,138.65,138.61,13.0470912]
[1765542095621,0.66,138.64,138.61,13.0470912]
[1765542096008,0.66,138.64,138.59,20.97100722]
[1765542096206,7.87340846,138.64,138.59,10.01487478]
[1765542096420,7.87340846,138.64,138.59,7.2150228]
[1765542096598,0.66,138.63,138.59,7.2150228]
[1765542098216,7.87356824,138.63,138.59,7.2150228]
[1765542099721,7.87356824,138.63,138.59,10.01487478]
[1765542101791,7.21292556,138.64,138.59,10.01487478]
[1765542101992,0.66,138.63,138.59,10.01487478]
[1765542103118,7.87357057,138.63,138.59,10.01487478]
[1765542103308,0.66,138.62,138.59,7.2150228]
[1765542104013,7.87357057,138.63,138.59,10.01487478]
[1765542104399,7.21357057,138.63,138.59,10.01487478]
[1765542104602,0.66,138.62,138.59,10.01487478]
[1765542105624,7.87403989,138.62,138.59,7.2150228]
[1765542105808,10.67389187,138.62,138.58,20.26279795]
[1765542106009,0.66,138.61,138.58,20.26279795]
[1765542106522,0.66,138.61,138.59,7.21540306]
[1765542113427,7.21370741,138.63,138.59,7.21540306]
[1765542113725,7.21370741,138.63,138.59,10.01474431]
[1765542113924,7.86370741,138.63,138.59,10.01474431]
[1765542116407,0.65,138.62,138.59,7.21540306]
[1765542116927,8.0,138.65,138.59,7.21540306]
[1765542116928,0.75,138.65,138.61,2.79934125]
[1765542117915,0.75,138.65,138.62,7.21396623]
[1765542119725,0.75,138.65,138.61,10.01382793]
[1765542119924,7.96242234,138.65,138.61,7.21448668]
[1765542120316,0.65,138.64,138.61,7.21448668]
[1765542121608,0.1,138.65,138.61,28.05004465]
[1765542121810,0.1,138.65,138.62,2.79934125]
[1765542122015,0.75,138.65,138.61,48.40955819]
[1765542122337,10.76188892,138.65,138.61,20.26157788]
[1765542122720,0.65,138.64,138.61,20.26157788]
[1765542122920,0.65,138.64,138.61,23.06091913]
[1765542123227,0.1,138.65,138.63,7.21344586]
[1765542123415,0.75,138.65,138.63,7.21344586]
[1765542126542,0.75,138.65,138.62,7.21396623]
[1765542129813,7.96247311,138.65,138.62,7.21396623]
[1765542130019,10.76181436,138.65,138.61,20.26137061]
[1765542130215,0.65,138.64,138.61,20.26137061]
[1765542131132,7.86324114,138.64,138.6,15.11479999]
[1765542131327,10.66258239,138.64,138.6,15.11479999]
[1765542131527,0.65,138.63,138.6,15.11479999]
[1765542132417,0.65,138.63,138.6,7.21479999]
[1765542133038,0.65,138.63,138.59,7.21531276]
[1765542133039,10.66305925,138.63,138.59,7.21531276]
[1765542133548,0.65,138.62,138.59,7.21531276]
[1765542138649,7.86396778,138.62,138.59,7.21531276]
[1765542139151,0.66,138.61,138.59,7.21531276]
[1765542146568,7.21292556,138.64,138.59,7.21531276]
[1765542146731,0.66,138.63,138.59,7.21531276]
[1765542147463,0.66,138.63,138.59,10.01471724]
[1765542148860,7.87354039,138.63,138.59,7.21531276]
[1765542149158,10.67294487,138.63,138.59,7.21531276]
[1765542149360,0.66,138.62,138.59,7.21531276]
[1765542158772,7.87405694,138.62,138.59,7.21531276]
[1765542159650,0.66,138.61,138.59,7.21531276]
[1765542164593,0.66,138.62,138.59,7.21531276]
[1765542164790,7.21326623,138.64,138.59,29.62803982]
[1765542164791,7.87326623,138.64,138.59,29.62803982]
[1765542165568,0.66,138.63,138.59,29.62803982]
[1765542167256,0.66,138.63,138.6,12.37390753]
[1765542167751,12.24757235,138.63,138.6,12.37390753]
[1765542167965,12.24757235,138.63,138.58,32.53681074]
[1765542168179,0.69,138.62,138.58,44.78438309]
[1765542168475,0.69,138.62,138.58,40.41047556]
[1765542169512,7.90422362,138.62,138.58,40.41047556]
[1765542170015,0.69,138.61,138.58,40.41047556]
[1765542170720,0.69,138.61,138.58,28.16290321]
[1765542171102,0.69,138.61,138.58,35.37712683]
[1765542171414,0.69,138.61,138.58,27.47712683]
[1765542171614,7.90462062,138.61,138.57,7.21636825]
[1765542171800,12.27852815,138.61,138.57,7.21636825]
[1765542172002,0.69,138.6,138.57,7.21636825]
[1765542173988,7.90508414,138.6,138.56,14.43127988]
[1765542174488,11.58869799,138.61,138.56,25.25978143]
[1765542174699,0.69,138.6,138.56,29.63368896]
[1765542174901,0.69,138.6,138.56,51.29668495]
[1765542176704,0.69,138.61,138.58,4.37390753]
[1765542177925,0.69,138.61,138.58,12.27390753]
[1765542179009,0.69,138.61,138.59,7.21552781]
[1765542183028,12.27813105,138.61,138.57,15.11616753]
[1765542183333,12.27813105,138.61,138.57,7.21616753]
[1765542183542,0.69,138.6,138.57,7.21616753]
[1765542194534,0.69,138.6,138.57,11.58979121]
[1765542195655,25.24942737,138.62,138.57,11.58979121]
[1765542195858,0.69,138.61,138.57,11.58979121]
[1765542196651,0.69,138.61,138.57,7.21616753]
[1765542196841,7.90457146,138.61,138.57,7.21616753]
[1765542197655,0.71,138.6,138.57,7.21616753]
[1765542207877,0.71,138.6,138.57,11.58979121]
[1765542210856,0.71,138.6,138.57,7.21616753]
[1765542211359,7.92409236,138.62,138.57,29.63121431]
[1765542211582,0.71,138.61,138.57,29.63121431]
[1765542211875,0.71,138.61,138.57,49.71837258]
[1765542213358,0.71,138.61,138.57,57.61837209]
[1765542214192,0.71,138.61,138.57,21.66143182]
[1765542214193,7.92488213,138.61,138.57,21.66143182]
[1765542214496,7.92488213,138.61,138.49,36.30149755]
[1765542214497,2.79934964,138.58,138.49,36.30149755]
[1765542214675,3.50934964,138.57,138.51,10.69934964]
[1765542214869,0.71,138.57,138.54,7.21807842]
[1765542215181,0.71,138.56,138.54,7.21807842]
[1765542215898,0.71,138.56,138.53,7.21865299]
[1765542219570,0.71,138.56,138.52,7.21917412]
[1765542219775,0.71,138.56,138.52,10.01852376]
[1765542220371,19.7936177,138.58,138.52,10.01852376]
[1765542220372,9.09426806,138.58,138.53,11.60929456]
[1765542220592,0.71,138.58,138.55,2.79934964]
[1765542221112,0.71,138.58,138.54,2.79934964]
[1765542221292,0.71,138.58,138.55,7.21561807]
[1765542221790,7.92615778,138.58,138.54,7.21812963]
[1765542222295,0.71,138.57,138.54,7.21812963]
[1765542227205,7.21583045,138.59,138.55,2.79934964]
[1765542227408,0.71,138.57,138.55,2.79934964]
[1765542227805,0.71,138.57,138.54,14.43625926]
[1765542228008,0.71,138.57,138.55,2.79934964]
[1765542228305,0.71,138.57,138.54,28.06280913]
[1765542228701,7.89583045,138.59,138.54,28.06280913]
[1765542229090,0.68,138.58,138.54,28.06280913]
[1765542229492,0.68,138.58,138.54,35.96280913]
[1765542235626,0.68,138.58,138.56,7.21709006]
[1765542238727,0.68,138.58,138.55,7.21761097]
[1765542242230,0.68,138.58,138.55,25.26163839]
[1765542242419,0.68,138.58,138.55,28.06098803]
[1765542243712,7.89521298,138.6,138.55,28.06098803]
[1765542244030,0.68,138.59,138.55,28.06098803]
[1765542245834,0.68,138.59,138.55,28.06207085]
[1765542247131,0.68,138.59,138.55,25.26163839]
[1765542255233,0.68,138.59,138.55,28.06207085]
[1765542257248,0.68,138.59,138.55,25.26163839]
[1765542257448,7.89560853,138.59,138.55,25.26163839]
[1765542257862,0.66,138.58,138.55,25.26163839]
[1765542265944,0.66,138.63,138.58,13.0470912]
[1765542266144,7.87354294,138.63,138.59,2.80043246]
[1765542266543,0.66,138.62,138.59,2.80043246]
[1765542267141,0.66,138.62,138.6,7.21500721]
[1765542268265,0.66,138.62,138.59,7.21552781]
[1765542276465,4.37382379,138.64,138.59,11.5893516]
[1765542276466,7.87315446,138.64,138.59,11.5893516]
[1765542276678,0.66,138.63,138.59,29.62817113]
[1765542277355,0.66,138.63,138.6,4.37382379]
[1765542277560,0.66,138.64,138.6,4.37382379]
[1765542277953,0.66,138.64,138.6,12.27382379]
[1765542278471,0.1,138.65,138.62,4.37382379]
[1765542278650,0.1,138.65,138.61,7.21448668]
[1765542278850,0.66,138.64,138.61,7.21448668]
[1765542285456,5.03242558,138.64,138.61,7.21448668]
[1765542286253,0.66,138.63,138.61,7.21448668]
[1765542286455,0.66,138.63,138.6,18.03709444]
[1765542286681,0.66,138.63,138.6,25.93709444]
[1765542287680,0.66,138.63,138.6,33.15210165]
[1765542288790,0.66,138.63,138.6,44.83709663]
[1765542290884,0.66,138.63,138.6,33.15210165]
[1765542291206,0.66,138.63,138.62,7.21396623]
[1765542292804,0.66,138.63,138.61,7.21448668]
[1765542293689,0.66,138.63,138.61,14.52705608]
[1765542293882,0.66,138.63,138.61,7.21448668]
[1765542296602,0.1,138.65,138.64,13.0470912]
[1765542296806,0.1,138.65,138.64,25.31951678]
[1765542297006,0.1,138.65,138.64,20.9470912]
[1765542297516,0.1,138.65,138.64,23.83382305]
[1765542297707,0.81,138.65,138.64,7.9]
[1765542298397,0.1,138.65,138.64,7.9]
[1765542298902,0.1,138.65,138.64,15.11292556]
[1765542300715,0.81,138.65,138.63,7.21330962]
[1765542306540,0.81,138.65,138.62,46.1928837]
[1765542306541,0.81,138.65,138.62,7.21375881]
[1765542306846,8.02244525,138.65,138.61,14.52621797]
[1765542307025,12.39487083,138.65,138.61,7.21427691]
[1765542307347,0.71,138.64,138.61,7.21427691]
[1765542309026,0.71,138.64,138.6,25.25173126]
[1765542309447,7.92294608,138.64,138.6,25.25173126]
[1765542309647,0.71,138.63,138.6,25.25173126]
[1765542309844,0.71,138.63,138.6,29.62415684]
[1765542310762,4.37242558,138.62,138.58,7.21591063]
[1765542310924,4.37242558,138.62,138.57,7.21639797]
[1765542311250,0.71,138.61,138.57,7.21639797]
[1765542311618,0.71,138.61,138.56,7.21695441]
[1765542311619,4.37242558,138.6,138.56,7.21695441]
[1765542312027,0.71,138.59,138.56,7.21695441]
[1765542312753,0.71,138.59,138.57,7.21656627]
[1765542313550,0.71,138.59,138.56,7.21687913]
[1765542315050,12.30083256,138.61,138.55,29.63777163]
[1765542315348,7.92469932,138.61,138.56,4.37613324]
[1765542315652,0.71,138.6,138.56,4.37613324]
[1765542316153,0.71,138.6,138.57,7.21656924]
[1765542317539,0.71,138.6,138.56,7.21709006]
[1765542319961,4.37613324,138.57,138.55,7.21469932]
[1765542320145,4.37613324,138.57,138.54,20.9470912]
[1765542320345,0.65,138.56,138.54,20.9470912]
[1765542321072,0.65,138.56,138.54,28.1651506]
[1765542322067,0.65,138.56,138.54,20.2651506]
[1765542324951,12.24325016,138.56,138.52,15.11890213]
[1765542325266,12.24325016,138.56,138.52,7.21890213]
[1765542325267,4.37613324,138.55,138.52,7.21890213]
[1765542325478,5.02613324,138.55,138.52,7.21890213]
[1765542325774,0.65,138.54,138.52,7.21890213]
[1765542326978,0.65,138.54,138.52,7.21917412]
[1765542327769,25.93751803,138.59,138.55,13.0470912]
[1765542327770,18.03751803,138.59,138.55,13.0470912]
[1765542327972,0.65,138.6,138.56,4.37613324]
[1765542328287,0.65,138.6,138.56,22.41365127]
[1765542328471,0.65,138.6,138.56,18.03751803]
[1765542329075,0.65,138.6,138.57,7.21656924]
[1765542329270,7.21470123,138.61,138.57,7.21656924]
[1765542329482,0.65,138.6,138.57,25.25799234]
[1765542329786,0.65,138.6,138.57,46.91942416]
[1765542330369,0.65,138.6,138.57,51.2955574]
[1765542333491,0.65,138.6,138.58,4.37613324]
[1765542333984,0.65,138.6,138.58,11.59207777]
[1765542335896,0.65,138.6,138.58,10.01546329]
[1765542337794,0.65,138.6,138.57,21.66143182]
[1765542338111,3.44951876,138.6,138.54,2.79951876]
[1765542338274,0.65,138.59,138.54,24.46564377]
[1765542338471,0.65,138.59,138.5,6.25679168]
[1765542338692,2.79951876,138.57,138.52,7.21895611]
[1765542338888,2.79951876,138.57,138.52,15.11895611]
[1765542339081,0.65,138.56,138.52,7.21895611]
[1765542339585,0.65,138.56,138.52,10.01847487]
[1765542340294,0.65,138.56,138.52,7.21895611]
[1765542340482,0.65,138.56,138.52,10.01847487]
[1765542340880,10.66677502,138.56,138.51,20.26655612]
[1765542341282,0.65,138.55,138.51,20.26655612]
[1765542341692,0.65,138.55,138.5,5.68917019]
[1765542341884,2.79951876,138.54,138.49,31.16702957]
[1765542342083,2.79951876,138.54,138.49,39.06702957]
[1765542342289,7.86865299,138.53,138.49,39.06702957]
[1765542342698,0.65,138.52,138.49,39.06702957]
[1765542343610,0.65,138.52,138.5,2.79951876]
[1765542344486,0.65,138.52,138.5,10.01961668]
[1765542345803,0.65,138.52,138.5,10.02290017]
[1765542346791,0.65,138.52,138.5,7.22009792]
[1765542349310,0.65,138.52,138.5,10.02290017]
[1765542349908,0.69,138.54,138.51,2.80280225]
[1765542350607,0.69,138.54,138.52,2.80280225]
[1765542350787,0.69,138.54,138.52,10.02185699]
[1765542351112,0.69,138.54,138.52,7.21905474]
[1765542352807,10.02012177,138.56,138.52,7.21905474]